Cogmind - Beta 11 *** ADVENTURER MODE // 2022.04.16 @ 02:06:56 Player: MrPotato28 Result: Destroyed by S-27 Virus with Autogun Performance ------------- Evolutions (4) 2000 Regions Visited (7) 1400 Robots Destroyed (74) 370 Value Destroyed (2635) 2635 Prototype IDs (15) 300 Alien Tech Used (0) 0 Bonus (67) 67 TOTAL SCORE: 6772 Bonus ------- High Alert Combat Kills 97 Friendly Fire -30 Cogmind --------- Core Integrity 0/850 Matter 52/300 Energy 150/150 System Corruption 7% Temperature Cool (0) Movement Core (100) Ox1 Location -6/Factory Parts ------- > --- POWER (2) -------- Micro Nuclear Core > --- PROPULSION (5) --- (None) > --- UTILITY (6) ------ (None) > --- WEAPON (2) ------- (None) > --- INVENTORY (5) ---- Shock Rifle Shock Rifle Cooled Plasma Cannon Gauss Rifle Remote Datajack Peak State ------------ > --- POWER ------------ Light Deuterium Engine Fusion Compressor > --- PROPULSION ------- Improved Airjet Improved Airjet Xenon Bombardment Thruster Xenon Bombardment Thruster > --- UTILITY ---------- Improved Heat Sink Advanced Visual Processing Unit Improved Sensor Array Improved Signal Interpreter Improved Transmission Jammer Hacking Suite > --- WEAPON ----------- Improved Spread Laser Flak Gun > --- INVENTORY -------- Light Deuterium Engine Reaction Control System Drone Bay Arc Projector Mini Grenade Launcher [Rating: 57] Favorites ----------- Power Micro Nuclear Core Engine Ion Engine Power Core Micro Nuclear Core Propulsion Aluminum Leg Treads Light Treads Leg Aluminum Leg Hover Unit Improved Airjet Flight Unit Flight Unit Utility Signal Interpreter Device Improved Transmission Jammer Storage Small Storage Unit Processor Signal Interpreter Hackware Hacking Suite Weapon Improved Spread Laser Energy Gun Improved Spread Laser Energy Cannon Cooled Plasma Cannon Ballistic Gun High-powered Shotgun Launcher Mini Grenade Launcher Build | -11 -10 -9 -8 -7 -6 -6 -6 ------- Run | Scr Mat Mat Mat Fac Fac Was Fac Slots Evolved 8 | . . 2 2 2 2 . . Power 1 | . . . . 1 . . . Propulsion 3 | . . 1 1 . 1 . . Utility 4 | . . 1 1 1 1 . . Weapon . | . . . . . . . . Parts Attached 138 | 6 19 22 21 49 2 . 19 Power 24 | 1 3 4 3 9 1 . 3 Engine 11 | 1 3 4 1 1 . . 1 Core 13 | . . . 2 8 1 . 2 Reactor . | . . . . . . . . Propulsion 49 | 2 8 5 6 25 . . 3 Treads 1 | . . . 1 . . . . Leg 18 | 2 6 1 2 7 . . . Wheel . | . . . . . . . . Hover 16 | . . . . 13 . . 3 Flight 14 | . 2 4 3 5 . . . Utility 28 | 1 2 3 6 10 1 . 5 Device 23 | . 1 3 6 7 1 . 5 Storage 1 | 1 . . . . . . . Processor 3 | . 1 . . 2 . . . Hackware 1 | . . . . 1 . . . Protection . | . . . . . . . . Artifact . | . . . . . . . . Weapon 37 | 2 6 10 6 5 . . 8 Energy Gun 25 | 2 6 6 3 3 . . 5 Energy Cannon 1 | . . . . . . . 1 Ballistic Gun 8 | . . 4 2 2 . . . Ballistic Cannon . | . . . . . . . . Launcher 3 | . . . 1 . . . 2 Special Weapon . | . . . . . . . . Impact Weapon . | . . . . . . . . Slashing Weapon . | . . . . . . . . Piercing Weapon . | . . . . . . . . Special Melee Weapon . | . . . . . . . . Unidentified Prototypes 3 | . . . 1 1 . . 1 Parts Lost 27 | . . 2 10 7 . 2 6 Power 3 | . . . 2 1 . . . Propulsion 12 | . . 1 3 5 . 1 2 Utility 6 | . . . 4 . . . 2 Weapon 6 | . . 1 1 1 . 1 2 Highest Loss Streak 8 | . . 1 8 3 . 2 5 To Critical Strikes 1 | . . . . . . 1 . Average Slot Usage (%) 88 | . 98 93 90 93 93 79 47 Engine 4 | . 13 11 2 1 6 1 1 Core 6 | . . . 6 11 6 6 3 Leg 8 | . 27 3 7 4 . . . Hover 8 | . . . . 16 13 13 6 Flight 8 | . . 29 21 5 13 10 . Device 18 | . 13 16 22 20 20 20 16 Processor 10 | . 9 11 9 12 13 13 4 Hackware 2 | . . . . 4 6 6 3 Energy Gun 11 | . 27 16 8 6 6 3 3 Ballistic Gun 4 | . . 4 5 7 6 3 . Naked Turns 38 | . . . . . . . 38 Heaviest Build 28 | 14 15 15 15 22 22 21 28 Greatest Support 30 | 20 20 12 30 30 18 18 18 Greatest Overweight (x) 7 | 2 . 1 2 7 1 1 6 Average Overweight (x) . | . . . . . 1 . 1 Largest Inventory Capacity 8 | 8 8 5 5 5 5 5 5 Average Capacity 5 | 7 5 5 5 5 5 5 5 Most Carried 5 | 2 5 5 5 5 5 5 5 Average Carried 4 | 1 4 4 4 4 4 5 2 Final Capacity 8 | 8 5 5 5 5 5 5 5 Final Carried 5 | 2 5 5 5 5 5 5 5 Class Distribution -------------------- 41% | Mutant 19% | Hacker-Mutant 14% | Hacker-Skirmisher 11% | Scavenger-Mutant 5% | Scavenger-Scout 3% | Scavenger-Skirmisher Dominant Class ---------------- Mutant | -10/Materials Mutant | -9/Materials Scavenger-Mutant | -8/Materials Hacker-Mutant | -7/Factory Hacker-Skirmisher | -6/Factory Hacker-Scout | -6/Waste Hacker-Mutant | -6/Factory Resources | -11 -10 -9 -8 -7 -6 -6 -6 ----------- Run | Scr Mat Mat Mat Fac Fac Was Fac Matter Collected 1712 | 205 225 234 266 633 . . 149 Remotely . | . . . . . . . . Salvage Created 2689 | . 509 564 386 1137 . . 93 Parts 139 | . 22 45 21 45 . . 6 Haulers Intercepted 2 | . 2 . . . . . . Recyclers Shooed 3 | . . . . 3 . . . Parts Field Recycled . | . . . . . . . . Retrieved Matter . | . . . . . . . . Parts Self-Destructed . | . . . . . . . . Prevented . | . . . . . . . . Kills | -11 -10 -9 -8 -7 -6 -6 -6 ------- Run | Scr Mat Mat Mat Fac Fac Was Fac Combat Hostiles Destroyed 63 | . 10 17 10 24 . . 2 Guns 56 | . 9 17 6 24 . . . Cannons 2 | . . . . . . . 2 AOE 5 | . 1 . 4 . . . . Classes Destroyed 11 | . 5 1 1 4 . . . Worker 1 | . . . . 1 . . . Tunneler 1 | . 1 . . . . . . Hauler 2 | . 2 . . . . . . Recycler 3 | . . . . 3 . . . Operator 1 | . . . . 1 . . . Watcher 3 | . 1 . . 2 . . . Swarmer 11 | . 3 8 . . . . . Grunt 35 | . 7 6 4 18 . . . Sentry 9 | . . 3 3 3 . . . Hunter 4 | . . . 3 1 . . . Programmer 4 | . . . . 2 . . 2 Best Kill Streak 6 | . 2 6 5 5 . . 1 Combat Bots Only 6 | . 2 6 5 4 . . 1 Max Kills in Single Turn 2 | . 1 1 2 1 . . 1 Gunslinging . | . . . . . . . . Exploded 2 | . 1 . 2 . . . . Melee . | . . . . . . . . Uniques/NPCs Destroyed . | . . . . . . . . Combat | -11 -10 -9 -8 -7 -6 -6 -6 -------- Run | Scr Mat Mat Mat Fac Fac Was Fac Damage Taken 3760 | . 286 217 788 1101 . 46 1322 Core 1447 | . 87 44 198 264 . 14 840 Absorbed by Shields . | . . . . . . . . Regen/Repaired (Parts) 98 | . 20 . 14 64 . . . Core Remaining (%) 76 | 100 65 89 64 62 . . . Volleys Fired 186 | . 38 41 31 70 . . 6 Largest 2 | . 2 2 2 2 . . 1 Hottest 115 | . 115 115 90 103 . . 35 Shots Fired 327 | . 76 62 51 132 . . 6 Gun 319 | . 76 62 49 132 . . . Cannon 3 | . . . . . . . 3 Launcher 5 | . . . 2 . . . 3 Special . | . . . . . . . . Kinetic 103 | . . 9 24 70 . . . Thermal 184 | . 70 24 25 62 . . 3 Explosive 5 | . . . 2 . . . 3 Electromagnetic 35 | . 6 29 . . . . . Robot Hit Streak 24 | . 17 17 21 24 . . 5 Robot Miss Streak 7 | . 2 2 3 7 . . 1 Penetration Max . | . . . . . . . . Secondary Targets 3 | . 1 . 1 1 . . . Max Gunslinging Chain 1 | . 1 . 1 1 . . . Shots Hit Robots 284 | . 65 51 45 118 . . 5 Core Hits 222 | . 19 23 34 140 . . 6 Critical Kills 2 | . . 1 1 . . . . Critical Parts Destroyed 1 | . . . . 1 . . . Critical Strikes 8 | . 4 1 2 1 . . . Burn 5 | . 4 . 1 . . . . Destroy 3 | . . 1 1 1 . . . Melee Attacks . | . . . . . . . . Impact . | . . . . . . . . Slashing . | . . . . . . . . Piercing . | . . . . . . . . Sneak Attacks . | . . . . . . . . Combat Hostiles . | . . . . . . . . Follow-up Attacks . | . . . . . . . . Damage Inflicted 5749 | . 930 608 1003 2919 . . 289 Guns 5055 | . 849 608 679 2919 . . . Cannons 79 | . . . . . . . 79 Explosions 506 | . 81 . 324 . . . 101 Melee . | . . . . . . . . Ramming 109 | . . . . . . . 109 Kinetic 1691 | . . 66 318 1307 . . . Thermal 3151 | . 857 242 361 1612 . . 79 Explosive 425 | . . . 324 . . . 101 Electromagnetic 373 | . 73 300 . . . . . Impact . | . . . . . . . . Slashing . | . . . . . . . . Piercing . | . . . . . . . . Highest Corruption 7 | . . . 1 1 . . 7 Average Corruption 2 | . . . 1 1 . . 3 Corruption Purged . | . . . . . . . . Corruption Blocked . | . . . . . . . . Effects 17 | . . . 1 4 . . 12 Message Errors 4 | . . . . . . . 4 Matter Fused 3 | . . . . 2 . . 1 Heat Flow Errors 5 | . . . . 1 . . 4 Energy Discharges 1 | . . . . 1 . . . Parts Rejected 1 | . . . . . . . 1 Data Loss (minor) 2 | . . . . . . . 2 Alerts 1 | . . . 1 . . . . Overload Shots . | . . . . . . . . Overflow Damage 45 | . . . 7 . . . 38 Projectiles 38 | . . . . . . . 38 Explosions 7 | . . . 7 . . . . Melee . | . . . . . . . . Knockbacks 1 | . . . . . . . 1 Impact 1 | . . . . . . . 1 Kinetic . | . . . . . . . . Secondary . | . . . . . . . . Self-Inflicted Damage 138 | . 28 . 44 . . . 66 Shots 5 | . 1 . 2 . . . 2 Rammed 28 | . . . . . . . 28 Targets Rammed 28 | . . . . . . . 28 Kicked . | . . . . . . . . Crushed . | . . . . . . . . Highest Temperature 435 | . 435 202 312 195 . . 251 Average Temperature 89 | . 144 66 91 42 . . 100 Received Heat Transfer 1182 | . 156 90 252 579 . . 105 Effects 4 | . 4 . . . . . . Shutdowns 2 | . 2 . . . . . . Energy Bleed 1 | . 1 . . . . . . Short Circuit 1 | . 1 . . . . . . Siege Activations . | . . . . . . . . Robots Corrupted . | . . . . . . . . Combat Hostiles . | . . . . . . . . Parts Fried . | . . . . . . . . Impact Corruptions . | . . . . . . . . Robots Melted 2 | . 2 . . . . . . Combat Hostiles . | . . . . . . . . Parts Melted 6 | . 6 . . . . . . Heat Transferred 5406 | . 2616 666 699 1325 . . 100 Parts Sabotaged . | . . . . . . . . Parts Stolen . | . . . . . . . . Parts Stripped . | . . . . . . . . Power Chain Reactions 1 | . 1 . . . . . . Missiles Intercepted . | . . . . . . . . Alert | -11 -10 -9 -8 -7 -6 -6 -6 ------- Run | Scr Mat Mat Mat Fac Fac Was Fac Peak Influence 541 | . 198 541 484 417 69 64 103 Initial 122 | . . 7 122 111 69 19 26 Average 169 | . 74 277 303 219 69 34 44 Maximum Alert Level 2 | . . 2 2 2 . . . Low Security (%) 62 | 100 100 33 18 43 100 100 100 Level 1 30 | . . 35 62 50 . . . Level 2 7 | . . 31 19 5 . . . Level 3 . | . . . . . . . . Level 4 . | . . . . . . . . Level 5 . | . . . . . . . . High Security . | . . . . . . . . Max Security . | . . . . . . . . Squads Dispatched 16 | . 1 2 . 10 . . 3 Investigation 6 | . 1 . . 5 . . . Extermination 5 | . . . . 3 . . 2 Reinforcement 5 | . . 2 . 2 . . 1 Assault . | . . . . . . . . Garrison . | . . . . . . . . Intercept . | . . . . . . . . Searches Triggered . | . . . . . . . . Construction Impeded . | . . . . . . . . Haulers Reinforced . | . . . . . . . . Active Scanning Responses . | . . . . . . . . Cargo Convoy Interrupts . | . . . . . . . . Stealth | -11 -10 -9 -8 -7 -6 -6 -6 --------- Run | Scr Mat Mat Mat Fac Fac Was Fac Distress Signals 5 | . . . 2 2 . . 1 Communications Jammed 4 | . . . 4 . . . . Distress Signals 4 | . . . 4 . . . . Times Spotted 123 | . 16 22 19 48 . 5 13 Peak Tracking Total 7 | . 3 7 6 5 . 5 7 Tactical Retreats 13 | . 3 2 2 5 . . 1 Traps | -11 -10 -9 -8 -7 -6 -6 -6 ------- Run | Scr Mat Mat Mat Fac Fac Was Fac Traps Triggered 14 | . 2 . 3 6 2 . 1 Indirectly . | . . . . . . . . Trap Hack Attempts . | . . . . . . . . Triggered . | . . . . . . . . Disarmed . | . . . . . . . . Reprogrammed . | . . . . . . . . Reused . | . . . . . . . . Traps Extracted . | . . . . . . . . Installed . | . . . . . . . . Triggered . | . . . . . . . . Machines | -11 -10 -9 -8 -7 -6 -6 -6 ---------- Run | Scr Mat Mat Mat Fac Fac Was Fac Machines Disabled . | . . . . . . . . Max in Single Turn . | . . . . . . . . Garrison Access 1 | . . . 1 . . . . Machines Sabotaged . | . . . . . . . . Garrisons Compromised . | . . . . . . . . Overloaded Fab Kills . | . . . . . . . . Hacking | -11 -10 -9 -8 -7 -6 -6 -6 --------- Run | Scr Mat Mat Mat Fac Fac Was Fac Machines Accessed 37 | . 7 2 6 18 3 . 1 Terminals 16 | . 6 1 3 5 . . 1 Fabricators 4 | . . . . 4 . . . Repair Stations 6 | . 1 . 1 3 1 . . Recycling Units 5 | . . . 1 3 1 . . Scanalyzers 4 | . . 1 . 3 . . . Garrison Access 2 | . . . 1 . 1 . . Total Hacks 96 | . 25 7 11 47 4 . 2 Successful 68 | . 17 7 6 36 1 . 1 Failed 28 | . 8 . 5 11 3 . 1 Catastrophic 1 | . . . . 1 . . . Database Lockouts . | . . . . . . . . Manual . | . . . . . . . . Terminals 42 | . 23 2 6 9 . . 2 Fabricators 10 | . . . . 10 . . . Repair Stations 12 | . 2 . 2 7 1 . . Recycling Units 9 | . . . 2 6 1 . . Scanalyzers 20 | . . 5 . 15 . . . Garrison Access 3 | . . . 1 . 2 . . Terminal Hacks 26 | . 15 2 2 6 . . 1 Record 1 | . 1 . . . . . . Robot Analysis 2 | . 1 . . . . . 1 Prototype ID Bank 4 | . 1 . 1 2 . . . Open DSF 2 | . . . . 2 . . . Branch Access Points 2 | . 1 . . 1 . . . Emergency Access Points 1 | . 1 . . . . . . Terminal Index 1 | . 1 . . . . . . Locate Traps 1 | . 1 . . . . . . Dispatch Records 1 | . 1 . . . . . . Transport Status 2 | . 1 . 1 . . . . Investigation Status 1 | . . 1 . . . . . Reinforcement Status 1 | . 1 . . . . . . Assault Status 1 | . . . . 1 . . . Hauler Manifests 2 | . 2 . . . . . . Registered Prototypes 2 | . 1 1 . . . . . Zone Layout 2 | . 2 . . . . . . Fabricator Hacks 8 | . . . . 8 . . . Network Status 2 | . . . . 2 . . . Load Schematic 3 | . . . . 3 . . . Build 3 | . . . . 3 . . . Repair Station Hacks 9 | . 2 . 2 5 . . . Scan Component 5 | . 1 . 1 3 . . . Repair 4 | . 1 . 1 2 . . . Recycling Unit Hacks 7 | . . . 1 5 1 . . Process 1 | . . . . 1 . . . Report Inventory 3 | . . . . 2 1 . . Retrieve Components 3 | . . . 1 2 . . . Scanalyzer 17 | . . 5 . 12 . . . Insert Component 8 | . . 2 . 6 . . . Analyze 9 | . . 3 . 6 . . . Garrison Access Hacks 1 | . . . 1 . . . . Seal Access 1 | . . . 1 . . . . Unauthorized Hacks . | . . . . . . . . Terminals . | . . . . . . . . Fabricators . | . . . . . . . . Repair Stations . | . . . . . . . . Recycling Units . | . . . . . . . . Scanalyzers . | . . . . . . . . Garrison Access . | . . . . . . . . Data Cores Recovered . | . . . . . . . . Used . | . . . . . . . . Hacking Detections 29 | . 5 2 4 16 2 . . Full Trace Events 5 | . . . . 5 . . . Feedback Events . | . . . . . . . . Feedback Blocked . | . . . . . . . . Robot Schematics Acquired . | . . . . . . . . Robots Built . | . . . . . . . . Authchips . | . . . . . . . . Time . | . . . . . . . . Total Robot Build Rating . | . . . . . . . . Part Schematics Acquired 8 | . . 2 . 6 . . . Parts Built 2 | . . . . 2 . . . Authchips . | . . . . . . . . Time 268 | . . . . 268 . . . Total Part Build Rating 8 | . . . . 8 . . . Parts Repaired 4 | . 1 . 1 2 . . . Time 93 | . 26 . 26 41 . . . Parts Recycled . | . . . . . . . . Recycled Matter . | . . . . . . . . Retrieved Matter . | . . . . . . . . Retrieved Components 19 | . . . 10 9 . . . Parts Scanalyzed 8 | . . 2 . 6 . . . Part Schematics Acquired 8 | . . 2 . 6 . . . Parts Damaged 1 | . . . . 1 . . . Bothacking | -11 -10 -9 -8 -7 -6 -6 -6 ------------ Run | Scr Mat Mat Mat Fac Fac Was Fac Used RIF Installer . | . . . . . . . . Robots Hacked . | . . . . . . . . Non-combat . | . . . . . . . . Combat . | . . . . . . . . Robot Hacks Applied . | . . . . . . . . Relay Couplers Released . | . . . . . . . . Fabnet Peak Effective % . | . . . . . . . . Robots Rewired . | . . . . . . . . Allies Hacked . | . . . . . . . . Hacks Repelled . | . . . . . . . . Allies | -11 -10 -9 -8 -7 -6 -6 -6 -------- Run | Scr Mat Mat Mat Fac Fac Was Fac Total Allies . | . . . . . . . . Largest Group . | . . . . . . . . Highest-Rated Group . | . . . . . . . . Highest-Rated Ally . | . . . . . . . . Total Orders 1 | . . . . . . . 1 FOLLOW 1 | . . . . . . . 1 Ally Attacks . | . . . . . . . . Total Damage . | . . . . . . . . Kills . | . . . . . . . . Allies Corrupted . | . . . . . . . . Allies Melted . | . . . . . . . . Intel | -11 -10 -9 -8 -7 -6 -6 -6 ------- Run | Scr Mat Mat Mat Fac Fac Was Fac Robot Analysis Total 2 | . 1 . . . . . 1 Derelict Logs Recovered . | . . . . . . . . Drone Launches 2 | . . . . . . . 2 Drone Recoveries . | . . . . . . . . Exploration | -11 -10 -9 -8 -7 -6 -6 -6 ------------- Run | Scr Mat Mat Mat Fac Fac Was Fac Turns Passed 5003 | 73 984 419 555 2005 268 47 652 Spaces Moved 4214 | 53 599 523 572 1705 226 89 447 Core 231 | 6 . . . 5 . . 220 Treads . | . . . . . . . . Legs 1089 | 47 582 . 187 273 . . . Wheels . | . . . . . . . . Hover 1890 | . . . . 1348 226 89 227 Flight 1004 | . 17 523 385 79 . . . Fastest Speed 29 | 50 37 34 29 34 106 46 46 Average Speed 84 | 117 117 40 63 83 106 52 110 Slowest Speed 400 | 150 120 114 195 400 106 106 350 Overloaded Moves . | . . . . . . . . Propulsion Burnouts . | . . . . . . . . Robots Hopped 2 | . . . 2 . . . . Cave-ins Triggered . | . . . . . . . . Exploration Rate (%) 36 | 3 71 39 43 37 8 75 13 Regions Visited 7 Branch Regions . Pre-discovered Areas . | . . . . . . . . Known Exits Taken 4 | . 1 1 1 1 . . . Unknown Exits Taken 1 | 1 . . . . . . . Scrap Searched . | . . . . . . . . Spaces Dug . | . . . . . . . . Terrain Destroyed 29 | . 5 . 17 . . . 7 Melee . | . . . . . . . . Projectile 1 | . . . . . . . 1 AOE 28 | . 5 . 17 . . . 6 Terrain Rammed 1 | . . . . . . . 1 Walls Destroyed . | . . . . . . . . Machines Disabled . | . . . . . . . . Actions | -11 -10 -9 -8 -7 -6 -6 -6 --------- Run | Scr Mat Mat Mat Fac Fac Was Fac Total 5366 | 60 806 678 721 2159 256 89 597 Wait 644 | . 125 61 80 279 13 . 86 Move 4204 | 52 598 522 567 1704 226 88 447 Hop 2 | . . . 2 . . . . Pick Up 47 | 2 10 7 10 15 1 . 2 Fast Attach 68 | 6 7 6 10 28 . . 11 Attach 39 | . 5 7 9 11 1 . 6 Detach 17 | . . 6 2 6 . . 3 Swap 31 | . 7 9 2 10 1 . 2 Drop 86 | . 16 19 8 36 1 1 5 Fire 186 | . 38 41 31 70 . . 6 Melee . | . . . . . . . . Ram 29 | . . . . . . . 29 Kick . | . . . . . . . . Crush . | . . . . . . . . Escape Stasis 13 | . . . . . 13 . . Rewire . | . . . . . . . . Trap . | . . . . . . . . Miscellaneous . | . . . . . . . . Route ------- -11/Scrapyard -10/Materials (discovered 3 exits: *Mat / *Min x2) -9/Materials (discovered 2 exits: *Mat x2) -8/Materials -7/Factory (discovered 4 exits: *Fac / Sto / Low x2) -6/Factory -6/Waste -6/Factory (discovered 1 exit: [*Fac]) History --------- Turn | Location | Event 9 | -11/Scrapyard | Discovered new exit (range 16) 74 | -11/Scrapyard | Entered Materials 314 | -10/Materials | Build established: Mutant 573 | -10/Materials | Discovered new exit (range 16) 639 | -10/Materials | Identified exit to Mines 974 | -10/Materials | Discovered new exit (range 15) 1022 | -10/Materials | Repaired Med. Laser 1056 | -10/Materials | Identified exit to Materials 1058 | -10/Materials | Entered another Materials area 1058 | -9/Materials | Evolved 2 slots: Propulsion x1, Utility x1 1432 | -9/Materials | Discovered new exit (range 8) 1457 | -9/Materials | Discovered new exit (range 15) 1476 | -9/Materials | Identified exit to Materials 1477 | -9/Materials | Entered another Materials area 1477 | -8/Materials | Evolved 2 slots: Propulsion x1, Utility x1 1704 | -8/Materials | Repaired Flight Unit 1808 | -8/Materials | Lost 8 parts (2p3n2u1w) 1998 | -8/Materials | Discovered new exit (range 4) 2017 | -8/Materials | Identified exit to Factory 2032 | -8/Materials | Entered Factory 2032 | -7/Factory | Evolved 2 slots: Power x1, Utility x1 2053 | -7/Factory | Build established: Scavenger-Mutant 2133 | -7/Factory | Repaired Cesium-ion Thruster 2208 | -7/Factory | Identified exit to Storage 2208 | -7/Factory | Identified exit to Lower Caves 2522 | -7/Factory | Build established: Mutant 3057 | -7/Factory | Build established: Hacker-Mutant 3363 | -7/Factory | Fabricated Imp. Airjet (x1) 3388 | -7/Factory | Lost 3 parts (1p2n) 3586 | -7/Factory | Repaired Mic. Nuclear Core 3781 | -7/Factory | Fabricated Imp. Airjet (x1) 3910 | -7/Factory | Build established: Hacker-Skirmisher 3920 | -7/Factory | Discovered new exit (range 16) 4036 | -7/Factory | Identified exit to Factory 4037 | -7/Factory | Entered another Factory area 4037 | -6/Factory | Evolved 2 slots: Propulsion x1, Utility x1 4305 | -6/Factory | Sucked down chute 4305 | -6/Factory | Entered Waste 4307 | -6/Waste | Spotted C-40 Crusher 4313 | -6/Waste | Spotted C-40 Crusher 4321 | -6/Waste | Spotted C-40 Crusher 4327 | -6/Waste | Spotted C-40 Crusher 4330 | -6/Waste | Spotted C-40 Crusher 4331 | -6/Waste | Spotted C-40 Crusher 4338 | -6/Waste | Crushed by Compactor (1 part destroyed, 1 dropped) 4346 | -6/Waste | Discovered new exit (range 14) 4352 | -6/Waste | Identified exit to Factory 4352 | -6/Waste | Entered Factory 4520 | -6/Factory | Discovered new exit (range 19) 4743 | -6/Factory | Released all parts (9) 4779 | -6/Factory | Released all parts (2) 4990 | -6/Factory | Core integrity fell below 50% 4996 | -6/Factory | Spotted B-75 Beast 5001 | -6/Factory | Core integrity fell below 20% 5004 | -6/Factory | Destroyed by S-27 Virus with Autogun Last Messages --------------- 04989_ K-01 Serf destroyed. 04989_ Fusion Modulator explodes. 04989_ K-01 Serf destroyed. 04989_ P-60 Hacker destroyed. 04990_ K-01 Serf collects debris. 04992_ U-05 Engineer lays Concrete. 04995_ K-01 Serf collects debris. 04995_ U-05 Engineer lays Concrete. 04996_ K-01 Serf collects debris. 04996_ U-05 Engineer lays Concrete. 04997_ Acquired 5 matter. 04997_ Gravmag System destroyed. 04997_ U-05 Engineer lays Concrete. 04998_ Imp. Heat Sink destroyed. 05000_ System corrupted: Component Analysis Suite rejected. 05000_ Acquired 22 matter. 05001_ R-10 Processor collects Med. Storage Unit. 05001_ Scanalyzer disabled. 05001_ Knocked back. 05002_ K-01 Serf collects debris. Map ----- +----------------------------------------------------+ | #?# ""???????????????????????????????? | | * #?# ???????????????????????????????? | | ### ???????????????????????????????? | | ######+######"""""###+########???????????????????? | | ??????????????????? | | ??????????????????? | | "" ???????????????????? | | " ?????????????????????? | | " ???????????????????????? | | ######+####" " #????????????????????????? | | * #########????????????????? | | s # #???????????????? | | u# #???????????????? | | s ; #???????????????? | | =| s #???????????????? | | !| " #???????????????? | | | #???????????????? | | ! g ; #???????????????? | | = ; #???????????????? | | "= ; #???????????????? | | " ;############???????????? | | # "" #???????????? | | ############ % "S #???????????? | | ????? # ; " #???????????? | | ???????"" " = ; Y#??????????? | | ???????"" " #@ !! #???????????? | | ?????"" ! # !! #???????????? | | ???? ! + #???????????? | | ????? " =%[ [|; #???????????? | | ??????" " ; """ """ #???????????? | | ??????" = """ """ #???????????? | | ?????? """ """??????????????? | | ??????####" ???????????????? | | ?????????# ;;######?????????????????? | | ?????????#" #??????????????????????? | | ???????? BB;#??????????????????????? | | ???????? BB #??????????????????????? | | ????????? R #??????????????????????? | | ?????????? ##??????????????????????? | | ???????????? = ???????????????????????? | | ?????????????? % ???????????????????????? | | ????????????????? ???????????????????????? | | ??????????????????? ????????????????????????? | | ?????????????????????????????????????????????????? | | ?????????????????????????????????????????????????? | | ?????????????????????????????????????????????????? | | ?????????????????????????????????????????????????? | | ?????????????????????????????????????????????????? | | ?????????????????????????????????????????????????? | | ?????????????????????????????????????????????????? | +----------------------------------------------------+ Best States ------------- Heat Dissipation 51 Energy Generation 34 Energy Capacity 300 Matter Stores 300 Matter Capacity 300 Sight Range 20 Robot Scan Range 15 Terrain Scan Range 16 Terrain Scan Density 10 Jamming Range 14 Additional Mass Support 9 Resistance: KI 20 Resistance: TH 40 Resistance: EX 20 Resistance: EM 20 Resistance: I 20 Resistance: S 20 Resistance: P 20 Evasion (%) 64 Offensive Hacking 20 Item Schematics ----------------- Flight Unit | -9/Materials | Scanalyzed Sensor Array | -9/Materials | Scanalyzed Imp. Airjet | -7/Factory | Scanalyzed Gravmag System | -7/Factory | Scanalyzed Mni. Grenade Launcher | -7/Factory | Scanalyzed Reaction Control System | -7/Factory | Scanalyzed Flak Gun | -7/Factory | Scanalyzed Xenon Bombardment Thruster | -7/Factory | Scanalyzed Robot Schematics ------------------ None Fabricated ------------ Imp. Airjet | x1 | -7/Factory Imp. Airjet | x1 | -7/Factory Alien Tech Used ----------------- None Achievements -------------- None Challenges ------------ None Game ------ Seed SwarmBehemothLauncher Manual? 0 Play Time 01:24:08 Cumulative 30.2 hours Start 2022.04.16 @ 00:41:24 End 2022.04.16 @ 02:06:56 Sessions 1 Manual Loads 0 Difficulty Adventurer Special Mode None Game No. 16 Rogue 0 Adventurer 8 Explorer 8 Win Type - Total 1 Types 1/0/0/0/0/0/0/0/0 Lore% 15 Gallery% 45 Achievement% 33 Wizard Run 0 Options --------- ASCII 0 Keyboard 1 Movement Arrows Keybinds 0 Fullscreen 1 Font 18/X11Bold Map View 76x50 Tactical HUD 1 Map Filters NONE Filters NONE Steam 1 RUN: 2528db33-de45-4fd7-97da-57d4e5e1aee2